bitfinex/quotes_SOLUSD_20241127
["timestamp","ask_amount","ask_price","bid_price","bid_amount"]
[1732725446043,12.39478473,240.92,240.85,12.39478473]
[1732725446362,12.39478473,240.94,240.85,12.39478473]
[1732725447060,12.39478473,240.92,240.83,12.39478473]
[1732725447267,12.39478473,240.9,240.83,12.39478473]
[1732725447754,12.39478473,240.92,240.84,4.1521]
[1732725448161,12.39478473,240.94,240.85,12.39478473]
[1732725449762,12.39478473,240.94,240.86,4.1517]
[1732725450139,2.28009798,240.96,240.86,4.1517]
[1732725450140,12.39478473,240.96,240.89,12.39478473]
[1732725450757,12.39478473,240.96,240.86,4.97977732]
[1732725450958,9.18473592,240.97,240.89,7.93983592]
[1732725451664,2.28000875,240.96,240.89,7.93983592]
[1732725451865,7.93983592,240.97,240.89,12.09093592]
[1732725452068,25.021684,241.0,240.89,12.09093592]
[1732725452245,7.93983592,240.96,240.89,12.09093592]
[1732725452566,7.93983592,240.96,240.89,4.1511]
[1732725452944,12.40696398,240.96,240.89,4.1511]
[1732725453467,13.65196398,240.96,240.89,4.1511]
[1732725454358,12.40696398,240.96,240.89,4.1511]
[1732725454848,12.40696398,240.94,240.86,13.23498042]
[1732725455058,12.40696398,240.92,240.86,4.1517]
[1732725455516,12.40696398,240.94,240.86,16.55866398]
[1732725456065,12.40696398,240.92,240.86,4.1517]
[1732725456250,1.2451,240.95,240.82,12.40696398]
[1732725456251,12.40696398,240.9,240.82,12.40696398]
[1732725456451,12.40696398,240.9,240.82,16.55926398]
[1732725456970,12.40696398,240.92,240.82,4.1523]
[1732725457267,12.40696398,240.92,240.85,4.1519]
[1732725460569,13.65216398,240.92,240.85,4.1519]
[1732725460755,13.65206398,240.94,240.86,12.40696398]
[1732725460956,1.03518479,240.93,240.86,12.40696398]
[1732725461257,1.245,240.95,240.86,12.40696398]
[1732725461472,13.44203196,240.96,240.87,4.1516]
[1732725461664,14.68703196,240.96,240.87,4.1516]
[1732725461873,13.65196398,240.96,240.87,4.1516]
[1732725462259,1.03506908,240.95,240.87,4.1516]
[1732725462681,2.28006908,240.95,240.87,4.1516]
[1732725463581,12.40696398,240.94,240.87,4.1516]
[1732725465979,1.2449,240.98,240.87,4.1516]
[1732725466283,12.40696398,240.93,240.84,12.40696398]
[1732725467478,12.40696398,240.93,240.86,12.40696398]
[1732725467661,13.65206398,240.95,240.86,12.40696398]
[1732725468079,13.65206398,240.95,240.85,4.1519]
[1732725468080,12.40696398,240.93,240.85,4.1519]
[1732725468967,12.40696398,240.93,240.82,4.1524]
[1732725469163,12.40696398,240.93,240.86,12.40696398]
[1732725469482,1.03510401,241.01,240.92,12.40696398]
[1732725469787,1.03510401,241.01,240.87,0.82808321]
[1732725469788,12.40696398,241.02,240.94,12.40696398]
[1732725470358,12.40696398,241.04,240.96,12.40696398]
[1732725470565,14.68630651,241.06,240.98,12.40696398]
[1732725470858,6.662,241.13,240.98,12.40696398]
[1732725470859,2.27893314,241.1,241.0,12.40696398]
[1732725471080,12.40696398,241.08,241.0,16.55626398]
[1732725472880,13.65136398,241.08,241.0,16.55626398]
[1732725474180,12.40696398,241.04,240.98,22.5626]
[1732725474383,12.40696398,241.01,240.98,22.5626]
[1732725474766,12.40696398,241.03,240.98,22.5626]
[1732725475778,1.03469015,241.07,240.98,22.5626]
[1732725475995,13.44165413,241.07,240.98,39.11926398]
[1732725476291,14.68605413,241.07,240.98,34.96956398]
[1732725476507,12.40696398,241.05,240.98,34.96956398]
[1732725476867,12.40696398,241.03,240.98,22.5626]
[1732725477689,12.40696398,241.01,240.93,38.79466398]
[1732725478279,12.40696398,241.03,240.93,38.79466398]
[1732725478674,12.40696398,241.01,240.93,34.64426398]
[1732725478989,12.40696398,240.99,240.93,22.2373]
[1732725479867,12.40696398,241.01,240.93,22.2373]
[1732725480068,1.03481638,241.0,240.93,22.2373]
[1732725480285,13.65176398,240.99,240.93,22.2373]
[1732725480493,12.40696398,240.99,240.93,22.2373]
[1732725480902,1.2448,241.0,240.93,22.2373]
[1732725480903,12.40696398,240.97,240.93,22.2373]
[1732725481076,12.40696398,240.97,240.88,18.41856398]
[1732725481277,12.40696398,240.97,240.88,6.0116]
[1732725481472,12.40696398,240.97,240.89,12.40696398]
[1732725481777,1.03497556,240.96,240.88,6.0116]
[1732725481982,12.40696398,240.97,240.88,6.0116]
[1732725482187,1.03504573,240.96,240.88,6.0116]
[1732725482494,12.40696398,240.95,240.88,6.0116]
[1732725482904,12.40696398,240.97,240.89,12.40696398]
[1732725483086,1.0350272,240.96,240.89,12.40696398]
[1732725483288,14.68689118,240.97,240.89,12.40696398]
[1732725483481,14.68689118,240.97,240.88,6.0116]
[1732725483688,12.40696398,240.95,240.88,6.0116]
[1732725484400,13.65206398,240.95,240.88,6.0116]
[1732725484590,14.68704145,240.97,240.88,6.0116]
[1732725484793,12.40696398,240.95,240.88,6.0116]
[1732725485378,1.03505068,240.98,240.89,12.40696398]
[1732725485670,13.65176398,240.99,240.9,12.40696398]
[1732725485873,12.40696398,240.97,240.88,18.41856398]
[1732725486176,12.40696398,240.93,240.88,6.0116]
[1732725486385,2.28037689,240.92,240.83,12.40696398]
[1732725486590,12.40696398,240.89,240.78,4.153]
[1732725486906,1.03539205,240.88,240.79,7.94496326]
[1732725487073,7.94496326,240.83,240.76,22.1252]
[1732725487275,7.94496326,240.85,240.76,22.1252]
[1732725487497,7.94496326,240.83,240.76,22.1252]
[1732725488001,20.0,240.88,240.76,22.1252]
[1732725488297,7.94496326,240.84,240.76,22.1252]
[1732725488699,1.2456,240.85,240.76,22.1252]
[1732725488899,13.66431894,240.85,240.76,34.54391894]
[1732725489096,1.03556793,240.84,240.76,34.54391894]
[1732725489698,1.03557262,240.88,240.82,12.41871894]
[1732725489903,12.41871894,240.91,240.82,12.41871894]
[1732725489904,13.45429156,240.91,240.82,12.41871894]
[1732725490206,14.69949156,240.91,240.82,12.41871894]
[1732725490786,1.03557262,240.91,240.84,12.41871894]
[1732725490985,1.0352614,240.92,240.84,12.41871894]
[1732725491184,1.0352614,240.92,240.81,20.0]
[1732725491387,12.41871894,240.91,240.83,12.41871894]
[1732725491589,12.41871894,240.93,240.83,12.41871894]
[1732725491791,8.112,241.0,240.83,12.41871894]
[1732725491792,12.41871894,240.91,240.83,16.57081894]
[1732725491997,12.41871894,240.91,240.81,32.41871894]
[1732725492293,12.41871894,240.89,240.81,12.41871894]
[1732725492508,12.41871894,240.87,240.79,12.41871894]
[1732725492702,12.41871894,240.89,240.79,12.41871894]
[1732725493094,12.41871894,240.89,240.82,12.41871894]
[1732725493297,1.2452,240.93,240.82,12.41871894]
[1732725493298,12.41871894,240.91,240.82,12.41871894]
[1732725493700,12.41871894,240.91,240.84,12.41871894]
[1732725494011,12.41871894,240.93,240.84,12.41871894]
[1732725494206,13.66381894,240.93,240.84,12.41871894]
[1732725495417,12.41871894,240.91,240.82,12.41871894]
[1732725495926,12.41871894,240.89,240.8,12.41871894]
[1732725496091,12.41871894,240.85,240.76,38.69721894]
[1732725496289,1.03553346,240.84,240.76,38.69721894]
[1732725496592,12.41871894,240.83,240.76,22.1252]
[1732725496796,1.03564283,240.82,240.76,22.1252]
[1732725497222,12.41871894,240.81,240.76,6.2434]
[1732725497411,13.66451894,240.81,240.76,6.2434]
[1732725497606,4.1492859,240.88,240.71,10.8074]
[1732725497607,12.41871894,240.79,240.71,10.8074]
[1732725497799,12.41871894,240.84,240.7,15.0691]
[1732725497800,12.41871894,240.74,240.7,15.0691]
[1732725498294,12.41871894,240.79,240.7,12.41871894]
[1732725498497,1.03586773,240.78,240.7,12.41871894]
[1732725498717,12.41871894,240.77,240.68,12.41871894]
[1732725498922,1.03589852,240.76,240.68,12.41871894]
[1732725499306,12.41871894,240.72,240.68,4.1548]
[1732725499511,12.41871894,240.74,240.66,6.6532]
[1732725499715,1.03608696,240.73,240.66,6.6532]
[1732725500008,12.41871894,240.74,240.67,0.05539595]
[1732725500212,1.0359827,240.73,240.67,0.05539595]
[1732725500572,1.03597961,240.73,240.68,12.41871894]
[1732725500722,12.41871894,240.77,240.68,12.41871894]
[1732725500896,12.41871894,240.75,240.67,0.05539595]
[1732725501096,12.41871894,240.73,240.67,0.05539595]
[1732725501320,1.03609412,240.72,240.67,0.05539595]
[1732725501633,12.41871894,240.69,240.67,0.05539595]
[1732725501799,1.03627756,240.68,240.67,0.05539595]
[1732725502293,24.81316156,240.68,240.67,0.05539595]
[1732725502530,1.03627756,240.68,240.67,0.05539595]
[1732725503315,2.28267756,240.68,240.67,0.05539595]
[1732725504520,1.03627756,240.68,240.67,0.05539595]
[1732725504824,12.41871894,240.69,240.67,0.05539595]
[1732725505323,1.03620282,240.68,240.67,0.05539595]
[1732725506507,24.81308682,240.68,240.67,0.05539595]
[1732725507099,43.776884,240.6,240.44,6.6126]
[1732725507327,12.41871894,240.49,240.44,10.7715]
[1732725507899,12.41871894,240.49,240.4,12.41871894]
[1732725508121,12.41871894,240.47,240.4,4.1596]
[1732725508329,12.41871894,240.47,240.38,10.7725]
[1732725508530,12.41871894,240.47,240.39,12.41871894]
[1732725508906,1.03712546,240.56,240.39,12.41871894]
[1732725509110,12.41871894,240.49,240.39,12.41871894]
[1732725509313,1.03707227,240.48,240.41,12.41871894]
[1732725509630,12.41871894,240.51,240.42,0.82967466]
[1732725509927,12.41871894,240.49,240.41,4.1594]
[1732725510131,1.2472,240.53,240.38,73.8]
[1732725510132,12.41871894,240.43,240.38,73.8]
[1732725510299,12.41871894,240.43,240.35,4.1605]
[1732725510500,12.41871894,240.45,240.35,16.57921894]
[1732725510811,12.41871894,240.45,240.37,12.41871894]
[1732725511227,12.41871894,240.43,240.35,16.57921894]
[1732725511802,1.03731134,240.42,240.35,16.57921894]
[1732725512003,12.41871894,240.41,240.33,17.07860914]
[1732725512608,12.41871894,240.43,240.33,17.07860914]
[1732725512809,1.03737662,240.42,240.33,17.07860914]
[1732725513736,12.41871894,240.41,240.33,17.07860914]
[1732725514110,12.41871894,240.43,240.35,12.41871894]
[1732725514310,1.03737746,240.42,240.35,12.41871894]
[1732725514534,12.41871894,240.43,240.35,12.41871894]
[1732725514718,1.03737189,240.42,240.33,17.07860914]
[1732725515311,12.41871894,240.36,240.33,0.4990902]
[1732725515509,12.41871894,240.34,240.33,0.4990902]
[1732725516309,12.41871894,240.36,240.33,0.4990902]
[1732725516507,1.03766222,240.35,240.33,0.4990902]
[1732725516709,12.41871894,240.36,240.33,0.4990902]
[1732725517216,1.03763724,240.35,240.33,0.4990902]
[1732725518331,1.03766289,240.37,240.33,0.4990902]
[1732725518713,12.41871894,240.36,240.33,0.4990902]
[1732725518910,1.03767517,240.35,240.33,0.4990902]
[1732725520329,12.41871894,240.4,240.33,0.4990902]
[1732725520540,1.03753618,240.39,240.33,12.91780914]
[1732725520834,13.45625512,240.39,240.33,0.4990902]
[1732725521032,1.03753618,240.39,240.33,12.91780914]
[1732725521411,1.2478,240.41,240.33,12.91780914]
[1732725521412,1.03754586,240.44,240.38,12.41871894]
[1732725521631,14.70339459,240.5,240.42,12.41871894]
[1732725521831,12.41871894,240.49,240.42,12.41871894]
[1732725522133,1.03718881,240.48,240.41,12.41871894]
[1732725522347,1.03714985,240.49,240.43,12.41871894]
[1732725522644,1.03714985,240.49,240.44,12.41871894]
[1732725522814,1.03714593,240.51,240.46,12.41871894]
[1732725523216,1.03714593,240.51,240.44,12.41871894]
[1732725523945,13.45586487,240.51,240.44,12.41871894]
[1732725524514,12.41871894,240.45,240.38,12.41871894]
[1732725524820,12.41871894,240.45,240.37,10.3835]
[1732725525432,12.41871894,240.47,240.38,12.41871894]
[1732725525639,1.03721775,240.46,240.4,12.41871894]
[1732725525938,12.41871894,240.52,240.44,12.41871894]
[1732725526533,1.03692376,240.51,240.44,12.41871894]
[1732725527142,12.41871894,240.5,240.42,12.41871894]
[1732725527328,12.41871894,240.48,240.4,16.57831894]
[1732725527631,12.41871894,240.5,240.42,12.41871894]
[1732725527837,1.0371047,240.49,240.42,12.41871894]
[1732725528047,12.41871894,240.48,240.4,12.41871894]
[1732725528342,12.41871894,240.46,240.38,12.41871894]
[1732725528638,1.03727771,240.45,240.37,6.2234]
[1732725528847,12.41871894,240.44,240.37,6.2234]
[1732725529051,12.41871894,240.44,240.33,74.2990902]
[1732725529052,12.41871894,240.42,240.34,12.41871894]
[1732725529244,12.41871894,240.48,240.33,0.4990902]
[1732725529245,12.41871894,240.4,240.33,0.4990902]
[1732725529550,1.03754914,240.39,240.33,0.4990902]
[1732725529726,12.41871894,240.35,240.33,0.4990902]
[1732725530123,13.66671894,240.38,240.33,0.4990902]
[1732725530318,12.41871894,240.34,240.33,0.4990902]
[1732725530527,12.41871894,240.36,240.33,0.4990902]
[1732725530718,1.03768644,240.35,240.33,0.4990902]
[1732725531050,12.41871894,240.34,240.33,0.4990902]
[1732725532343,19.95127668,240.35,240.33,0.4990902]
[1732725532544,1.03772163,240.34,240.33,0.4990902]
[1732725535160,2.28592163,240.34,240.33,0.4990902]
[1732725535452,22.23719831,240.34,240.33,0.4990902]
[1732725535655,46.01408231,240.34,240.33,0.4990902]
[1732725536551,20.0,240.31,240.18,10.2098]
[1732725536756,19.95127668,240.22,240.18,10.2098]
[1732725537227,1.03818361,240.3,239.71,81.73632918]
[1732725537228,19.95127668,240.2,240.12,19.95127668]
[1732725537434,19.95127668,240.2,240.13,4.1642]
[1732725537435,1.03831807,240.19,240.13,4.1642]
[1732725539055,19.95127668,240.18,240.13,4.1642]
[1732725539259,19.95127668,240.18,240.11,4.1646]
[1732725539260,1.03843289,240.17,240.11,4.1646]
[1732725539442,19.95127668,240.16,240.09,4.6639902]
[1732725540460,19.95127668,240.2,240.13,4.1644]
[1732725540834,19.95127668,240.24,240.16,19.95127668]
[1732725541051,20.9894436,240.26,240.18,19.95127668]
[1732725541556,19.95127668,240.24,240.16,19.95127668]
[1732725542452,19.95127668,240.24,240.17,4.1637]
[1732725542638,20.98936485,240.28,240.2,19.95127668]
[1732725542842,19.95127668,240.32,240.24,19.95127668]
[1732725543035,19.95127668,240.34,240.26,19.95127668]
[1732725543236,19.95127668,240.3,240.21,19.95127668]
[1732725543461,19.95127668,240.26,240.17,4.1637]
[1732725543633,19.95127668,240.23,240.17,4.1637]
[1732725544239,19.95127668,240.25,240.17,4.1637]
[1732725544444,19.95127668,240.23,240.17,4.1637]
[1732725546541,19.95127668,240.25,240.17,19.95127668]
[1732725546745,1.03816987,240.24,240.17,19.95127668]
[1732725546958,1.03816987,240.24,240.15,19.95127668]
[1732725547261,19.95127668,240.23,240.15,19.95127668]
[1732725547561,3.121,240.31,240.12,4.1645]
[1732725547562,19.95127668,240.25,240.17,19.95127668]
[1732725547757,1.03814925,240.24,240.17,19.95127668]
[1732725547942,19.95127668,240.23,240.13,23.776884]
[1732725548261,1.03814925,240.24,240.12,4.1645]
[1732725548262,19.95127668,240.18,240.12,4.1645]
[1732725548561,1.03845756,240.23,240.12,4.1645]
[1732725548746,19.95127668,240.22,240.13,19.95127668]
[1732725549262,1.03824591,240.21,240.13,19.95127668]
[1732725549653,1.03824591,240.21,240.12,4.1645]
[1732725549654,19.95127668,240.22,240.15,19.95127668]
[1732725550052,19.95127668,240.22,240.13,19.95127668]
[1732725550571,19.95127668,240.22,240.15,19.95127668]
[1732725550755,19.95127668,240.22,240.16,4.1638]
[1732725550960,19.95127668,240.24,240.16,4.1638]
[1732725551142,1.03815226,240.25,240.17,19.95127668]
[1732725551342,15.3992,240.28,240.21,19.95127668]
[1732725551343,19.95127668,240.28,240.21,19.95127668]
[1732725551557,19.95127668,240.3,240.23,19.95127668]
[1732725551965,19.95127668,240.3,240.16,89.2039811]
[1732725551966,1.03787948,240.29,240.21,19.95127668]
[1732725552153,19.95127668,240.22,240.15,19.95127668]
[1732725552461,12.47495279,240.3,240.21,12.47495279]
[1732725552763,1.03793239,240.29,240.22,4.1628]
[1732725552942,12.47495279,240.3,240.22,4.1628]
[1732725553142,13.51285915,240.3,240.22,4.1628]
[1732725553662,12.47495279,240.26,240.17,12.47495279]
[1732725554343,19.96556864,240.27,240.18,19.96556864]
[1732725554557,1.03806214,240.26,240.18,19.96556864]
[1732725554756,2.28666214,240.26,240.18,19.96556864]
[1732725555665,1.03806214,240.26,240.19,23.776884]
[1732725555969,19.96556864,240.27,240.18,24.12906864]
[1732725556149,19.96556864,240.25,240.18,19.96556864]
[1732725556357,19.96556864,240.23,240.16,19.96556864]
[1732725556558,19.96556864,240.21,240.12,19.96556864]
[1732725556966,19.96556864,240.17,240.07,0.5370195]
[1732725557163,19.96556864,240.17,240.09,35.22636864]
[1732725557468,19.96556864,240.17,240.09,39.39136864]
[1732725558066,1.03844845,240.16,240.09,35.22636864]
[1732725558746,19.96556864,240.15,240.07,24.66798814]
[1732725558946,21.21476864,240.15,240.07,20.50258814]
[1732725559265,19.96556864,240.17,240.09,19.96556864]
[1732725559466,1.03849569,240.16,240.09,19.96556864]
[1732725559977,19.96556864,240.17,240.09,19.96556864]
[1732725560470,19.96556864,240.19,240.11,19.96556864]
[1732725560649,19.96556864,240.19,240.07,4.7024195]
[1732725560650,22.25283151,240.21,240.13,19.96556864]
[1732725560847,22.25283151,240.21,240.13,24.12986864]
[1732725561039,19.96556864,240.19,240.11,19.96556864]
[1732725561242,1.03847684,240.18,240.09,19.96556864]
[1732725561440,1.03847684,240.18,240.11,19.96556864]
[1732725561860,1.03839792,240.21,240.15,19.96556864]
[1732725562044,1.2486,240.27,240.19,19.96556864]
[1732725562242,1.03814058,240.28,240.21,19.96556864]
[1732725563254,2.28664058,240.28,240.21,19.96556864]
[1732725563963,1.03814058,240.28,240.21,24.12856864]
[1732725564169,19.96556864,240.33,240.25,19.96556864]
[1732725565062,19.96556864,240.33,240.25,24.12776864]
[1732725565280,1.0378326,240.34,240.27,19.96556864]
[1732725565872,19.96556864,240.33,240.25,19.96556864]
[1732725566076,1.03787446,240.32,240.25,19.96556864]
[1732725566465,1.03778617,240.32,240.25,19.96556864]
[1732725567452,19.96556864,240.31,240.23,24.12806864]
[1732725567660,19.96556864,240.25,240.15,89.0873]
[1732725567967,19.96556864,240.27,240.19,19.96556864]
[1732725568179,1.0378822,240.3,240.23,19.96556864]
[1732725568373,21.00343775,240.31,240.23,19.96556864]
[1732725568669,19.96556864,240.33,240.25,19.96556864]
[1732725568877,1.03780468,240.32,240.25,19.96556864]
[1732725569459,19.96556864,240.31,240.23,19.96556864]
[1732725570379,1.03786015,240.3,240.23,19.96556864]
[1732725570585,1.03786015,240.3,240.22,4.1627]
[1732725570770,19.96556864,240.29,240.22,4.1627]
[1732725571776,1.03787016,240.35,240.27,19.96556864]
[1732725571996,1.03787016,240.35,240.3,19.96556864]
[1732725572172,1.03767603,240.36,240.3,19.96556864]
[1732725572884,2.28577603,240.36,240.3,19.96556864]
[1732725573192,2.28577603,240.36,240.25,23.776884]
[1732725573193,22.25134467,240.36,240.28,19.96556864]
[1732725573792,19.96556864,240.34,240.26,19.96556864]
[1732725573974,19.96556864,240.32,240.24,24.12786864]
[1732725574684,19.96556864,240.3,240.22,24.12826864]
[1732725574897,1.03790853,240.29,240.22,24.12826864]
[1732725575101,19.96556864,240.3,240.22,24.12826864]
[1732725576498,21.21396864,240.3,240.22,24.12826864]
[1732725576702,1.03790491,240.29,240.2,19.96556864]
[1732725576899,19.96556864,240.28,240.2,19.96556864]
[1732725577475,1.03797742,240.27,240.2,19.96556864]
[1732725577698,19.96556864,240.26,240.18,24.12896864]
[1732725578677,19.96556864,240.26,240.18,19.96556864]
[1732725578678,1.03805108,240.25,240.18,19.96556864]
[1732725579084,1.03805108,240.25,240.18,24.12906864]
[1732725579703,19.96556864,240.24,240.18,4.1635]
[1732725579872,21.00371185,240.24,240.18,4.1635]
[1732725580073,19.96556864,240.2,240.13,4.1644]
[1732725580273,19.96556864,240.17,240.13,4.1644]
[1732725580507,19.96556864,240.15,240.08,10.4273]
[1732725580673,19.96556864,240.15,240.08,4.1651]
[1732725581077,19.96556864,240.13,240.07,4.7024195]
[1732725581495,19.96556864,240.19,240.11,19.96556864]
[1732725581693,1.03841206,240.18,240.11,19.96556864]
[1732725581900,19.96556864,240.21,240.13,19.96556864]
[1732725582207,1.03825658,240.2,240.13,19.96556864]
[1732725582376,9.26116959,240.42,240.29,23.776884]
[1732725582575,19.96556864,240.43,240.34,19.96556864]
[1732725582776,21.21336864,240.43,240.32,19.96556864]
[1732725583381,16.1368,240.48,240.32,19.96556864]
[1732725583582,16.1368,240.48,240.31,0.83000483]
[1732725583583,19.96556864,240.43,240.34,19.96556864]
[1732725584296,19.96556864,240.39,240.3,19.96556864]
[1732725585492,19.96556864,240.41,240.32,19.96556864]
[1732725585807,21.21336864,240.41,240.32,19.96556864]
[1732725586809,21.21336864,240.41,240.3,19.96556864]
[1732725586810,19.96556864,240.39,240.3,19.96556864]
[1732725586988,19.96556864,240.39,240.32,19.96556864]
[1732725587191,21.21336864,240.43,240.36,19.96556864]
[1732725587381,21.21336864,240.43,240.34,19.96556864]
[1732725588203,19.96556864,240.41,240.32,19.96556864]
[1732725588789,21.21306864,240.47,240.39,19.96556864]
[1732725588981,19.96556864,240.45,240.37,19.96556864]
[1732725589511,19.96556864,240.45,240.35,19.96556864]
[1732725589811,19.96556864,240.45,240.37,19.96556864]
[1732725589988,1.2477,240.44,240.35,19.96556864]
[1732725590794,19.96556864,240.43,240.35,19.96556864]
[1732725590976,4.3669,240.44,240.35,19.96556864]
[1732725591184,4.3669,240.44,240.37,19.96556864]
[1732725591577,1.2477,240.44,240.37,19.96556864]
[1732725592284,19.96556864,240.43,240.35,19.96556864]
[1732725592699,1.2477,240.44,240.35,19.96556864]
[1732725594807,19.96556864,240.43,240.35,19.96556864]
[1732725595308,1.2478,240.42,240.35,19.96556864]
[1732725595990,19.96556864,240.41,240.33,19.96556864]
[1732725596313,1.2478,240.42,240.39,19.96556864]
[1732725597487,1.2476,240.46,240.39,19.96556864]
[1732725600511,19.96556864,240.45,240.37,19.96556864]
[1732725600890,4.3666,240.46,240.37,19.96556864]
[1732725601090,1.2476,240.46,240.41,19.96556864]
[1732725602197,1.2475,240.47,240.41,19.96556864]
[1732725602517,24.33186864,240.47,240.37,19.96556864]
[1732725603400,24.33186864,240.47,240.39,19.96556864]
[1732725603601,35.18886864,240.53,240.45,19.96556864]
[1732725603795,1.2472,240.52,240.47,19.96556864]
[1732725604408,1.247,240.56,240.49,19.96556864]
[1732725604718,1.247,240.58,240.55,19.96556864]
[1732725605012,1.247,240.58,240.45,4.1588]
[1732725605013,19.96556864,240.56,240.43,19.96556864]
[1732725605213,19.96556864,240.53,240.45,19.96556864]
[1732725605703,1.247,240.58,240.47,19.96556864]
[1732725605885,21.21256864,240.58,240.49,19.96556864]
[1732725606091,19.96556864,240.56,240.47,19.96556864]
[1732725606291,19.96556864,240.54,240.47,19.96556864]
[1732725606517,19.96556864,240.52,240.43,19.96556864]
[1732725606696,19.96556864,240.5,240.43,19.96556864]
[1732725607126,19.96556864,240.52,240.43,19.96556864]
[1732725607292,19.96556864,240.52,240.45,19.96556864]
[1732725608108,1.2471,240.55,240.49,19.96556864]
[1732725608307,1.247,240.57,240.53,19.96556864]
[1732725608705,1.247,240.57,240.49,19.96556864]
[1732725609327,19.96556864,240.56,240.49,19.96556864]
[1732725609698,19.96556864,240.54,240.46,19.96556864]
[1732725610428,1.2472,240.53,240.46,19.96556864]
[1732725610801,13.69648794,240.53,240.45,13.27877026]
[1732725611216,12.44928794,240.51,240.45,0.82948232]
[1732725611418,12.44928794,240.49,240.41,92.48248794]
[1732725611795,12.44928794,240.49,240.41,86.24928794]
[1732725612228,12.44928794,240.45,240.36,89.0979]
[1732725612520,19.9350664,240.46,240.39,19.9350664]
[1732725612700,19.9350664,240.5,240.41,19.9350664]
[1732725613230,19.9350664,240.48,240.41,19.9350664]
[1732725613724,19.9350664,240.5,240.41,19.9350664]
[1732725614108,21.1822664,240.54,240.45,19.9350664]
[1732725614305,21.1821664,240.56,240.47,19.9350664]
[1732725614501,19.9350664,240.56,240.48,23.776884]
[1732725614821,21.1820664,240.56,240.48,23.776884]
[1732725616523,21.1820664,240.56,240.49,19.9350664]
[1732725616823,21.1820664,240.56,240.48,27.935084]
[1732725617410,19.9350664,240.54,240.47,6.4218]
[1732725617609,19.9350664,240.52,240.43,19.9350664]
[1732725617810,19.9350664,240.52,240.44,0.82941742]
[1732725618199,1.2473,240.51,240.43,19.9350664]
[1732725618399,1.2473,240.51,240.43,24.92369767]
[1732725619523,19.9350664,240.54,240.46,23.776884]
[1732725620809,19.9350664,240.52,240.45,23.776884]
[1732725621019,19.9350664,240.46,240.36,21.6597]
[1732725621240,19.9350664,240.43,240.36,21.6597]
[1732725621545,1.2475,240.48,240.4,19.9350664]
[1732725621831,1.2475,240.48,240.41,0.82957978]
[1732725622422,19.9350664,240.49,240.41,0.82957978]
[1732725622733,19.9350664,240.51,240.42,19.9350664]
[1732725622934,19.9350664,240.49,240.41,0.82957978]
[1732725623141,19.9350664,240.47,240.39,23.776884]
[1732725623306,19.9350664,240.47,240.39,24.60653276]
[1732725623920,1.2476,240.46,240.39,24.60653276]
[1732725624448,1.2476,240.46,240.39,23.776884]
[1732725624653,1.2476,240.46,240.38,19.9350664]
[1732725624654,19.9350664,240.45,240.38,23.776884]
[1732725624956,19.9350664,240.43,240.36,21.6597]
[1732725625243,1.2476,240.46,240.3,23.62915667]
[1732725625244,19.9350664,240.39,240.3,23.62915667]
[1732725625622,19.9350664,240.37,240.3,23.62915667]
[1732725625823,19.9350664,240.35,240.27,19.9350664]
[1732725626150,19.9350664,240.35,240.27,24.0969664]
[1732725626525,19.9350664,240.35,240.27,19.9350664]
[1732725626833,19.9350664,240.33,240.25,26.1374664]
[1732725627030,19.9350664,240.37,240.29,19.9350664]
[1732725627451,19.9350664,240.37,240.26,0.82993569]
[1732725627452,19.9350664,240.35,240.27,19.9350664]
[1732725627650,19.9350664,240.35,240.27,93.7350664]
[1732725627951,19.9350664,240.35,240.28,4.99178796]
[1732725628855,19.9350664,240.35,240.28,4.1618]
[1732725629146,19.9350664,240.35,240.29,23.776884]
[1732725629454,3.1193,240.44,240.25,6.2024]
[1732725629455,19.9350664,240.3,240.25,6.2024]
[1732725629752,19.9350664,240.3,240.22,0.83020595]
[1732725630543,21.1834664,240.3,240.22,0.83020595]
[1732725630743,19.9350664,240.27,240.22,0.83020595]
[1732725631055,19.9350664,240.27,240.14,17.70426563]
[1732725631056,19.9350664,240.23,240.15,100.1103664]
[1732725631359,19.9350664,240.21,240.13,73.8]
[1732725631558,19.9350664,240.17,240.1,4.1647]
[1732725631855,19.9350664,240.17,240.09,42.2819664]
[1732725632033,19.9350664,240.15,240.07,24.6374859]
[1732725632236,19.9350664,240.13,240.07,0.5370195]
[1732725632727,19.9350664,240.16,240.07,5.53314191]
[1732725633128,19.9350664,240.2,240.1,19.9350664]
[1732725633355,19.9350664,240.2,240.12,19.9350664]
[1732725633660,19.9350664,240.2,240.13,0.83055248]
[1732725633840,1.2488,240.23,240.14,19.9350664]
[1732725633841,19.9350664,240.22,240.14,19.9350664]
[1732725634032,22.2225,240.4,240.21,19.9350664]
[1732725634232,1.2479,240.39,240.27,19.9350664]
[1732725634551,19.9350664,240.35,240.28,23.776884]
[1732725634923,19.9350664,240.37,240.28,24.60692404]
[1732725635129,19.9350664,240.32,240.28,23.776884]
[1732725635330,19.9350664,240.3,240.24,23.776884]